bitfinex-derivatives/quotes_ETHF0:USTF0_20241018
["timestamp","ask_amount","ask_price","bid_price","bid_amount"]
[1729211420030,6.29682658,2604.1,2604.0,0.38411]
[1729211420434,0.7859,2604.1,2604.0,0.38411]
[1729211420636,2.79317926,2604.1,2604.0,0.38411]
[1729211421544,2.79317926,2604.1,2603.7,0.96039]
[1729211421545,2.00727926,2604.2,2604.1,0.3841]
[1729211421748,2.00727926,2604.3,2604.2,0.38409]
[1729211423541,2.00727926,2604.3,2604.0,0.4198]
[1729211423542,3.34072658,2604.4,2604.0,0.4198]
[1729211423852,2.00627261,2604.3,2604.0,0.4198]
[1729211424034,2.00627261,2604.3,2604.2,0.38409]
[1729211424435,2.00627261,2604.4,2604.3,0.38407]
[1729211424639,2.43277261,2604.5,2604.4,0.38406]
[1729211424843,0.4265,2604.5,2604.4,0.38406]
[1729211426241,2.43277261,2604.5,2604.4,0.38406]
[1729211426548,2.43277261,2604.5,2603.9,3.2078]
[1729211426747,2.00627261,2604.4,2604.3,0.38406]
[1729211427943,2.43277261,2604.5,2604.0,0.96027]
[1729211428152,2.43277261,2604.5,2604.4,0.38406]
[1729211429248,0.4265,2604.5,2604.4,0.38406]
[1729211429446,2.4326896,2604.5,2604.4,0.38406]
[1729211430046,2.4326896,2604.5,2603.9,3.2078]
[1729211430254,2.0061896,2604.4,2604.3,0.38406]
[1729211430452,2.93742658,2604.5,2604.4,0.38406]
[1729211430652,3.32146658,2604.5,2604.4,0.38406]
[1729211431153,2.93742658,2604.5,2604.4,0.38406]
[1729211431843,2.93742658,2604.5,2603.9,3.2078]
[1729211432048,2.39035734,2604.4,2604.3,0.38407]
[1729211432252,0.38406,2604.4,2604.3,0.38407]
[1729211432547,3.0,2604.4,2604.2,0.38408]
[1729211432755,2.4250366,2604.3,2604.2,0.38408]
[1729211433754,0.4189,2604.3,2604.2,0.38408]
[1729211433953,2.4326366,2604.5,2604.1,3.0]
[1729211434255,2.4326366,2604.5,2604.4,0.38406]
[1729211435459,0.81056,2604.5,2604.3,0.38406]
[1729211435647,2.00608912,2604.4,2604.3,0.38407]
[1729211436560,2.43258912,2604.5,2604.4,0.38406]
[1729211436755,2.81662912,2604.5,2604.4,0.38406]
[1729211437058,2.43258912,2604.5,2604.4,0.38406]
[1729211437462,2.43258912,2604.5,2604.3,0.38406]
[1729211437760,5.51092658,2604.4,2603.9,3.2078]
[1729211437962,2.38990567,2604.2,2604.1,0.3841]
[1729211438462,3.17420567,2604.2,2604.1,0.3841]
[1729211438652,3.17420567,2604.2,2603.7,0.96039]
[1729211438854,2.00581567,2604.1,2604.0,0.38411]
[1729211439052,2.00581567,2604.1,2603.5,4.017]
[1729211439256,3.0,2603.9,2603.2,3.2078]
[1729211439557,2.00581567,2603.6,2602.8,7.57141]
[1729211439756,0.8219,2603.5,2603.4,0.3842]
[1729211439950,1.2423,2603.5,2603.4,0.3842]
[1729211443949,1.2423,2603.5,2602.8,7.57141]
[1729211444153,1.2423,2603.5,2602.9,0.9607]
[1729211444154,3.24811567,2603.5,2602.9,0.9607]
[1729211444353,0.3842,2603.4,2602.9,0.9607]
[1729211444557,6.63231567,2603.5,2603.3,0.38422]
[1729211444761,6.63231567,2603.5,2602.8,3.6107]
[1729211444762,0.38422,2603.4,2603.2,0.38423]
[1729211445064,2.00581567,2603.3,2603.2,0.38423]
[1729211445259,2.00581567,2603.3,2602.8,3.2078]
[1729211445459,3.2078,2603.4,2603.3,0.38422]
[1729211445460,5.21361567,2603.4,2603.3,0.38422]
[1729211445763,3.59201,2603.4,2603.2,0.38422]
[1729211445962,2.00459891,2603.3,2602.8,3.2078]
[1729211446161,0.38422,2603.3,2603.1,0.38424]
[1729211446559,3.2078,2603.2,2602.7,0.4102]
[1729211446860,5.59663891,2603.2,2603.0,0.38426]
[1729211447158,3.59204,2603.2,2603.0,0.38426]
[1729211447467,3.2078,2603.2,2602.6,3.2078]
[1729211447659,3.2078,2603.2,2602.6,4.16859]
[1729211447855,2.00459891,2603.3,2603.1,0.38425]
[1729211448159,2.38880891,2603.4,2603.2,0.38423]
[1729211448358,0.38422,2603.3,2603.1,0.38424]
[1729211448561,0.38422,2603.3,2602.7,0.96078]
[1729211448562,2.38881891,2603.4,2602.7,0.96078]
[1729211448755,2.38881891,2603.4,2603.1,0.38424]
[1729211449156,2.38881891,2603.4,2603.2,0.38423]
[1729211449563,6.23041891,2603.4,2603.2,0.38423]
[1729211449863,6.23041891,2603.4,2603.1,0.38424]
[1729211450060,5.00459891,2603.4,2603.1,0.38424]
[1729211450261,2.38882891,2603.3,2602.6,3.2078]
[1729211450465,2.38882891,2603.3,2603.1,0.38425]
[1729211450872,5.38881891,2603.4,2603.2,0.38423]
[1729211451271,5.38881891,2603.4,2602.7,0.38431]
[1729211451272,8.84619891,2603.4,2602.7,0.38431]
[1729211451462,5.00459891,2603.4,2602.6,3.2078]
[1729211451776,5.00459891,2603.4,2603.2,0.38423]
[1729211451777,5.38880891,2603.4,2603.2,0.38423]
[1729211451971,2.00459891,2603.3,2602.6,3.2078]
[1729211452172,5.51092658,2603.4,2602.6,3.2078]
[1729211452467,3.2078,2602.9,2602.4,0.4101]
[1729211452768,4.232,2602.8,2602.7,0.38431]
[1729211453159,4.6163,2602.8,2602.6,0.38432]
[1729211453363,4.6163,2602.8,2602.7,0.38431]
[1729211453574,4.232,2602.8,2602.2,0.96096]
[1729211453873,4.6163,2602.8,2602.6,0.38431]
[1729211454459,4.6163,2602.8,2602.7,0.38431]
[1729211454771,4.232,2602.8,2602.7,0.38431]
[1729211455162,4.232,2602.8,2602.1,4.97369]
[1729211455364,0.38434,2602.5,2602.1,3.2078]
[1729211455564,0.38434,2602.5,2601.2,3.2078]
[1729211455565,3.0,2602.2,2601.2,3.2078]
[1729211455764,3.2078,2602.3,2601.2,3.2078]
[1729211455765,3.0,2602.0,2601.2,3.2078]
[1729211455965,3.0,2602.0,2601.9,0.38443]
[1729211456187,6.2078,2602.0,2601.9,0.38443]
[1729211456469,6.2078,2602.0,2601.3,0.4247]
[1729211456470,12.2078,2602.0,2601.3,0.4247]
[1729211456669,12.2078,2602.0,2601.2,4.16912]
[1729211456670,0.4132,2601.9,2601.2,4.16912]
[1729211456872,0.4132,2601.9,2601.8,0.38444]
[1729211457370,10.2564,2601.9,2601.8,0.38444]
[1729211457674,0.4132,2601.9,2601.8,0.38444]
[1729211459473,0.8436,2602.1,2602.0,0.38441]
[1729211460264,0.4275,2602.1,2602.0,0.38441]
[1729211460465,0.4003,2602.2,2602.1,0.3844]
[1729211461078,0.4026,2602.3,2602.2,0.38438]
[1729211461365,0.3843,2602.8,2602.1,3.0]
[1729211461366,3.6053,2602.8,2602.1,3.0]
[1729211461567,0.4026,2602.7,2602.6,0.38431]
[1729211461773,3.78691,2602.7,2602.5,0.38433]
[1729211461960,3.4026,2602.7,2602.6,0.38432]
[1729211462364,7.245,2602.7,2602.6,0.38432]
[1729211462775,7.62931,2602.7,2602.0,1.3899]
[1729211462974,3.0,2602.5,2602.0,0.4289]
[1729211463178,6.2078,2602.5,2602.4,0.38435]
[1729211463681,10.0502,2602.5,2602.4,0.38435]
[1729211463876,10.43454,2602.5,2602.3,0.38436]
[1729211464076,6.59214,2602.5,2602.3,0.38436]
[1729211464275,6.2078,2602.5,2602.0,0.38441]
[1729211464576,6.59215,2602.5,2602.3,0.38436]
[1729211465074,0.8179,2602.4,2602.3,0.38436]
[1729211465265,0.38437,2602.3,2601.8,1.38998]
[1729211465465,3.3844,2602.1,2601.9,0.38441]
[1729211465670,0.832,2602.0,2601.9,0.38441]
[1729211466368,1.21641,2602.0,2601.5,1.92196809]
[1729211466670,6.59224,2601.9,2601.7,0.38445]
[1729211466975,6.2078,2601.9,2601.5,1.92196809]
[1729211467174,3.2078,2601.9,2601.5,1.92196809]
[1729211467572,3.2078,2601.9,2601.8,0.38444]
[1729211468076,7.051,2601.9,2601.8,0.38444]
[1729211468979,7.43543,2601.9,2601.5,1.92196809]
[1729211469177,3.2078,2601.9,2601.8,0.38444]
[1729211469570,7.051,2601.9,2601.8,0.38444]
[1729211470177,7.051,2601.9,2601.5,1.92196809]
[1729211470178,10.051,2601.9,2601.5,1.92196809]
[1729211470376,6.2078,2601.9,2601.5,1.92196809]
[1729211470573,6.2078,2601.6,2601.5,2.30645809]
[1729211470877,6.2078,2601.6,2601.5,1.92196809]
[1729211471275,16.43627,2601.6,2601.5,1.92196809]
[1729211471481,0.38452,2601.3,2601.2,0.38453]
[1729211471772,0.38452,2601.3,2601.1,4.2290673]
[1729211471773,3.0,2601.2,2601.1,4.2290673]
[1729211471987,7.2582,2601.2,2601.1,4.2290673]
[1729211473074,13.64273,2601.2,2601.1,3.8445273]
[1729211473265,13.64273,2601.2,2600.8,0.38458]
[1729211473266,0.38454,2601.1,2600.6,0.38461]
[1729211473471,3.0,2600.7,2599.8,0.96182]
[1729211473772,6.2078,2600.6,2600.5,0.38463]
[1729211474176,43.8,2600.8,2600.3,0.4202]
[1729211474477,40.8,2600.8,2600.7,0.3846]
[1729211475181,40.8,2600.8,2600.3,0.4202]
[1729211475478,3.0,2600.5,2600.4,0.38465]
[1729211477480,3.5989,2600.7,2600.6,0.38462]
[1729211478575,7.4437,2600.7,2600.3,0.4202]
[1729211478779,3.0,2600.4,2600.3,0.80486]
[1729211479283,3.0,2600.6,2600.5,0.38463]
[1729211479579,3.2078,2600.7,2600.6,0.38462]
[1729211479780,6.2078,2600.7,2600.6,0.38462]
[1729211481073,2.63043193,2600.7,2600.6,0.38462]
[1729211481275,6.2078,2601.0,2600.5,0.96158]
[1729211481477,6.2078,2601.0,2600.9,0.38457]
[1729211481688,41.209,2601.2,2601.1,0.38454]
[1729211481980,6.6146,2601.3,2600.5,4.16937]
[1729211482173,6.6146,2601.3,2601.2,0.38453]
[1729211482682,16.4586,2601.3,2600.9,0.3907]
[1729211482879,3.0,2601.0,2600.9,0.77527]
[1729211483974,3.0,2601.2,2601.1,0.38454]
[1729211485070,3.4081,2601.2,2601.1,0.38454]
[1729211485883,3.0,2601.2,2601.1,0.38454]
[1729211486478,6.8448,2601.2,2601.1,0.38454]
[1729211487779,3.0,2601.2,2601.1,0.38454]
[1729211488177,3.6146,2601.3,2601.2,0.38453]
[1729211488478,3.0,2601.4,2601.3,0.38451]
[1729211488870,6.844,2601.4,2601.3,0.38451]
[1729211490086,3.0,2601.4,2601.3,0.38451]
[1729211491883,3.3845,2601.4,2601.3,0.38451]
[1729211492678,3.0,2601.4,2601.3,0.38451]
[1729211500681,45.39028,2601.6,2601.3,0.38451]
[1729211500682,3.2078,2601.6,2601.5,0.38449]
[1729211500879,0.8072,2601.8,2601.4,0.8279]
[1729211501081,0.3944,2601.8,2601.7,0.38446]
[1729211501290,3.0,2601.9,2601.8,0.38444]
[1729211501687,6.2078,2602.1,2602.0,0.38441]
[1729211503891,2.38143768,2602.3,2602.2,0.38438]
[1729211503892,0.3944,2602.3,2602.2,0.38438]
[1729211504189,0.4071,2602.4,2602.3,0.38437]
[1729211505185,3.0,2602.5,2602.4,0.38435]
[1729211508101,3.38434,2602.5,2602.3,0.38435]
[1729211508290,3.59216,2602.4,2602.0,1.2393]
[1729211508488,1.98703768,2602.4,2602.0,1.2393]
[1729211508708,5.37137768,2602.5,2602.0,1.2393]
[1729211508890,5.37137768,2602.5,2602.3,0.38436]
[1729211509095,2.37138768,2602.4,2602.3,0.38436]
[1729211509395,1.98703768,2602.4,2602.3,0.38436]
[1729211509590,5.37137768,2602.5,2602.3,0.38436]
[1729211509790,5.37137768,2602.5,2602.1,0.3844]
[1729211509992,1.98703768,2602.4,2602.3,0.38435]
[1729211510189,1.98703768,2602.4,2602.0,1.2393]
[1729211510395,1.98703768,2602.4,2602.3,0.38437]
[1729211511196,2.37138768,2602.4,2602.3,0.38437]
[1729211511400,1.98703768,2602.4,2602.3,0.38437]
[1729211511901,1.98703768,2602.4,2602.0,1.2393]
[1729211512097,3.0,2602.3,2602.2,0.38437]
[1729211513996,4.98703768,2602.3,2602.1,0.38439]
[1729211514190,0.4241,2602.2,2602.1,0.38439]
[1729211515603,0.80848,2602.2,2602.1,0.38439]
[1729211515796,0.4241,2602.2,2602.1,0.38439]
[1729211516404,0.4241,2602.2,2602.0,0.8256]
[1729211516702,0.80849,2602.2,2602.0,0.8256]
[1729211517001,0.38443,2602.0,2601.8,0.38443]
[1729211517209,7.01271,2602.1,2601.9,0.38442]
[1729211517506,8.61533768,2602.1,2601.6,1.16296]
[1729211517697,3.0,2601.7,2601.2,3.2078]
[1729211517893,3.0,2601.7,2601.6,0.38447]
[1729211518098,0.38445,2601.8,2601.4,3.0]
[1729211518099,40.8,2601.8,2601.4,3.0]
[1729211518393,40.8,2601.8,2601.7,0.38446]
[1729211518799,0.38441,2602.0,2601.9,0.38442]
[1729211519304,41.18441,2602.0,2601.9,0.38442]
[1729211519497,0.38443,2601.9,2601.8,0.38443]
[1729211519702,3.0,2601.9,2601.3,0.7785]
[1729211519903,0.81095,2601.8,2601.7,0.38446]
[1729211520095,0.8316,2601.8,2601.3,0.7785]
[1729211520295,3.0,2601.5,2601.3,0.7785]
[1729211520509,3.0,2601.5,2601.2,3.2078]
[1729211520510,0.4265,2601.4,2600.6,0.96155]
[1729211520695,3.0,2601.3,2601.2,0.38453]
[1729211520901,3.8285,2601.4,2601.3,0.38451]
[1729211521805,3.8285,2601.4,2601.2,0.38452]
[1729211522005,3.8285,2601.4,2601.1,0.38454]
[1729211522202,0.8285,2601.4,2600.9,0.8125]
[1729211522403,0.8285,2601.4,2600.9,0.38457]
[1729211522404,3.0,2601.0,2600.9,0.38457]
[1729211522901,3.3879,2601.0,2600.9,0.38457]
[1729211523897,3.3879,2601.0,2600.5,0.8114]
[1729211523898,3.2078,2601.2,2600.5,4.77297]
[1729211524102,3.2078,2601.2,2601.1,0.38454]
[1729211524606,6.59234,2601.2,2601.0,0.38456]
[1729211524814,0.38456,2601.1,2600.8,0.38458]
[1729211525010,0.38456,2601.1,2600.9,0.38457]
[1729211525412,0.38456,2601.0,2600.8,0.38458]
[1729211525617,6.2078,2601.2,2600.8,0.38458]
[1729211525809,0.38455,2601.1,2600.9,0.38457]
[1729211527213,8.6915971,2601.2,2601.0,0.38455]
[1729211527415,6.2078,2601.2,2601.0,0.38455]
[1729211527810,6.59234,2601.2,2601.0,0.38455]
[1729211528005,6.2078,2601.2,2601.0,0.38455]
[1729211528707,6.59234,2601.2,2601.0,0.38455]
[1729211529921,6.2078,2601.2,2600.5,1.77296]
[1729211530220,6.59234,2601.2,2601.0,0.38455]
[1729211530924,6.2078,2601.2,2600.5,0.8114]
[1729211531123,6.2078,2601.2,2601.1,0.38454]
[1729211531332,3.2078,2601.2,2601.1,0.38454]
[1729211532336,6.2078,2601.2,2600.6,0.96155]
[1729211532528,0.38455,2601.1,2600.9,0.38457]
[1729211532725,3.0,2601.0,2600.9,0.38457]
[1729211533226,3.0,2601.0,2600.6,0.38461]
[1729211533227,0.38459,2600.8,2600.6,0.38461]
[1729211533431,3.2078,2601.2,2600.6,0.38462]
[1729211533432,3.0,2600.7,2600.6,0.38462]
[1729211534020,3.0,2600.7,2600.4,0.38464]
[1729211534232,1.4554,2600.8,2600.3,0.38466]
[1729211534233,3.0,2600.5,2600.3,0.38466]
[1729211534419,0.8011,2600.4,2600.3,0.38466]
[1729211535033,0.3904,2600.4,2600.3,0.38466]
[1729211535236,3.2078,2600.6,2600.5,0.38463]
[1729211536930,7.0089,2600.7,2600.1,1.2365]
[1729211537130,7.39351,2600.7,2600.5,0.38463]
[1729211537330,7.39351,2600.7,2600.5,0.38462]
[1729211538126,0.38462,2600.6,2600.5,0.38462]
[1729211538635,7.39351,2600.7,2600.1,1.2365]
[1729211538834,4.0089,2600.7,2600.6,0.38462]
[1729211540435,3.2078,2600.7,2600.6,0.38462]
[1729211540630,3.2078,2601.0,2600.6,9.8448]
[1729211540826,3.2078,2601.0,2600.9,0.38457]
[1729211544131,0.3845,2601.4,2600.9,6.0]
[1729211544329,0.7897,2601.4,2601.3,0.38451]
[1729211544838,0.38451,2601.3,2600.7,1.205]
[1729211545036,3.38451,2601.3,2601.1,0.38454]
[1729211545238,3.38451,2601.3,2601.2,0.38453]
[1729211545430,3.0,2601.3,2601.2,0.38453]
[1729211545834,3.38451,2601.3,2601.2,0.38453]
[1729211546529,3.0,2601.3,2600.7,1.205]
[1729211546837,3.0,2601.1,2600.7,0.3948]
[1729211547040,3.0,2601.1,2600.9,0.38457]
[1729211547041,0.3902,2601.0,2600.9,0.38457]
[1729211548938,3.2078,2601.2,2600.6,0.96155]
[1729211549241,3.2078,2601.2,2601.1,0.38454]
[1729211549437,3.59234,2601.2,2601.0,0.38455]
[1729211549626,3.2078,2601.2,2600.7,0.3892]
[1729211549832,3.2078,2601.2,2601.1,0.38454]
[1729211550033,3.2078,2601.2,2600.7,0.3892]
[1729211550238,3.38455,2601.1,2600.9,0.38457]
[1729211550439,3.38455,2601.1,2600.7,0.3892]
[1729211550747,0.3889,2601.0,2600.9,0.38457]
[1729211551045,0.3889,2601.0,2600.6,3.2078]
[1729211551336,0.3889,2601.0,2600.9,0.38457]
[1729211551337,0.7786,2601.0,2600.9,0.38457]
[1729211551742,3.2078,2601.2,2601.1,0.38454]
[1729211556851,5.6915971,2601.7,2601.6,0.38447]
[1729211557033,4.01216,2601.7,2601.6,0.38447]
[1729211557434,3.6277,2601.7,2601.6,0.38447]
[1729211557839,4.01216,2601.7,2601.6,0.38447]
[1729211558041,3.6277,2601.7,2601.6,0.38447]
[1729211558934,3.6277,2601.7,2601.3,0.4213]
[1729211558935,6.6277,2601.7,2601.3,0.4213]
[1729211559129,9.1114971,2601.7,2601.3,0.4213]
[1729211559341,9.4959571,2601.7,2601.6,0.38447]
[1729211560031,9.1114971,2601.7,2601.3,0.4213]
[1729211560343,9.4959571,2601.7,2601.6,0.38447]
[1729211561249,6.6277,2601.7,2601.6,0.38447]
[1729211561547,9.13300521,2601.7,2601.6,0.38447]
[1729211561947,5.92520521,2601.7,2601.6,0.38447]
[1729211562247,6.6277,2601.7,2601.6,0.38447]
[1729211562447,7.01216,2601.7,2601.6,0.38447]
[1729211563741,7.01217,2601.7,2601.1,0.96134]
[1729211563937,7.01217,2601.7,2601.6,0.38447]
[1729211564338,47.81217,2601.7,2601.6,0.38447]
[1729211564544,44.60437,2601.7,2601.6,0.38447]
[1729211564740,47.81216,2601.7,2601.6,0.38447]
[1729211564935,47.4277,2601.7,2601.6,0.38447]
[1729211565143,47.81216,2601.7,2601.6,0.38447]
[1729211566242,47.4277,2601.7,2601.6,0.38447]
[1729211567046,47.4277,2601.7,2601.1,1.38594]
[1729211567251,2.50713155,2601.5,2601.4,0.38449]
[1729211568144,5.89162155,2601.5,2601.4,0.38449]
[1729211569040,5.89163155,2601.5,2601.4,0.3845]
[1729211569244,3.3845,2601.5,2601.4,0.3845]
[1729211569438,5.89132849,2601.5,2601.4,0.3845]
[1729211570141,5.50682849,2601.5,2601.0,3.6102]
[1729211570450,0.38451,2601.4,2601.3,0.38451]
[1729211570640,2.89133849,2601.4,2601.3,0.38451]
[1729211570841,2.50682849,2601.4,2601.3,0.38451]
[1729211571352,2.89132849,2601.4,2601.3,0.38451]
[1729211573250,2.50682849,2601.4,2601.3,0.38451]
[1729211574749,2.50682849,2601.4,2601.0,4.16919]
[1729211574750,0.38449,2601.5,2601.4,0.3845]
[1729211574953,2.89167655,2601.5,2601.4,0.3845]
[1729211575452,0.38449,2601.5,2601.4,0.3845]
[1729211575950,0.96126,2601.4,2600.4,4.20543058]
[1729211576250,2.50643765,2600.9,2600.7,0.38459]
[1729211576448,3.35693765,2600.8,2600.5,0.4167]
[1729211576753,3.35693765,2600.8,2600.6,0.38461]
[1729211577047,0.8505,2600.8,2600.7,0.3846]
[1729211577446,0.8505,2600.8,2600.6,0.38461]
[1729211577848,3.74153765,2600.8,2600.6,0.38461]
[1729211578044,3.2078,2600.7,2600.5,0.80132]
[1729211578251,3.2078,2600.7,2600.6,0.38462]
[1729211578451,3.2078,2600.7,2600.5,0.4167]
[1729211578452,3.5924,2600.7,2600.5,0.80132]
[1729211578754,3.2078,2600.7,2600.6,0.38462]
[1729211579151,3.6122,2600.7,2600.6,0.38462]
[1729211579650,2.50643765,2600.8,2600.7,0.3846]
[1729211579852,5.71423765,2601.0,2600.9,0.38457]
[1729211580842,6.10463765,2601.0,2600.9,0.38457]
[1729211581451,2.50643765,2601.1,2600.5,1.37827]
[1729211581653,2.89683765,2601.2,2600.7,3.2078]
[1729211581852,2.89683765,2601.2,2601.1,0.38454]
[1729211582048,0.3904,2601.2,2601.1,0.38454]
[1729211582256,2.89683765,2601.2,2601.1,0.38454]
[1729211582654,2.89683765,2601.2,2600.4,3.2078]
[1729211582655,13.2352,2601.2,2600.2,4.093]
[1729211582849,13.2352,2601.2,2600.8,0.38459]
[1729211582850,5.50704879,2600.9,2600.8,0.38459]
[1729211583257,6.30621879,2600.9,2600.8,0.38459]
[1729211583452,5.92164879,2600.9,2600.8,0.38459]
[1729211584161,3.4146,2600.9,2600.8,0.38459]
[1729211584358,3.79918,2600.9,2600.7,0.38459]
[1729211584561,3.6356,2600.8,2600.7,0.38459]
[1729211585259,3.6356,2600.8,2600.7,0.3846]
[1729211586062,4.02019,2600.8,2600.7,0.3846]
[1729211586362,3.6356,2600.8,2600.6,0.4165]
[1729211586565,3.6356,2600.8,2600.7,0.3846]
[1729211588566,3.2078,2601.2,2601.1,0.38454]
[1729211589965,3.2078,2601.2,2601.1,10.22934]
[1729211590176,10.70824879,2601.7,2601.6,0.38447]
[1729211590361,4.0562,2601.7,2601.6,0.38447]
[1729211590862,7.44067,2601.7,2601.2,0.421]
[1729211591057,7.0562,2601.7,2601.2,0.421]
[1729211591260,3.0,2601.4,2601.3,0.3845]
[1729211591563,3.0,2601.4,2601.0,0.38455]
[1729211591564,0.38454,2601.2,2601.0,0.38455]
[1729211591763,0.38456,2601.0,2600.9,0.38457]
[1729211591958,5.93798672,2601.1,2601.0,0.38456]
[1729211592158,2.93798672,2601.1,2601.0,0.38456]
[1729211592358,1.16812,2601.3,2600.7,3.6064]
[1729211592359,2.50886685,2601.2,2601.1,0.38454]
[1729211592663,2.89956685,2601.3,2601.2,0.38453]
[1729211593061,2.89956685,2601.3,2600.7,3.6064]
[1729211593062,0.3907,2601.3,2600.7,3.6064]
[1729211593267,0.38457,2601.0,2600.8,0.38458]
[1729211593567,5.50908994,2601.1,2600.7,3.5924]
[1729211593568,2.93798994,2600.9,2600.7,3.5924]
[1729211593766,2.50908994,2600.8,2600.7,3.5924]
[1729211593962,2.89978994,2600.8,2600.7,3.5924]
[1729211594270,2.89978994,2600.8,2600.7,3.2078]
[1729211594460,0.3907,2600.8,2600.7,3.5924]
[1729211595069,2.89978994,2600.8,2600.7,3.5924]
[1729211595274,0.77529,2600.8,2600.7,3.5924]
[1729211595460,3.28437994,2600.8,2600.7,3.2078]
[1729211596162,2.89978994,2600.8,2600.5,0.38462]
[1729211596358,2.89369994,2600.7,2600.5,0.38462]
[1729211596560,2.50908994,2600.7,2600.6,0.38462]
[1729211599257,4.9931,2600.8,2600.2,1.36078]
[1729211599462,4.9931,2600.8,2600.7,0.3846]
[1729211599667,4.6085,2600.8,2600.7,0.3846]
[1729211601567,4.9931,2600.8,2600.2,1.36078]
[1729211601775,3.9831,2600.8,2600.7,0.3846]
[1729211602176,3.5985,2600.8,2600.2,0.3991]
[1729211602478,3.0,2600.6,2600.5,0.38463]
[1729211603075,3.38462,2600.6,2600.5,0.38463]
[1729211603366,3.0,2600.6,2600.5,0.38463]
[1729211604565,0.38461,2600.7,2600.5,0.38463]
[1729211604872,0.38461,2600.7,2600.6,0.38462]
[1729211606272,2.89369994,2600.7,2600.6,0.38462]
[1729211608764,2.89369994,2600.7,2600.3,0.4288]
[1729211608765,2.50908994,2600.7,2600.3,0.4288]
[1729211608969,2.89369994,2600.7,2600.6,0.38462]
[1729211610769,2.50908994,2600.7,2600.6,0.38462]
[1729211612070,2.50908994,2601.0,2600.6,16.0526]
[1729211612267,2.50908994,2601.2,2600.9,3.2078]
[1729211612468,0.8037,2601.4,2601.3,0.38451]
[1729211612469,3.31278994,2601.4,2601.3,0.38451]
[1729211613081,0.8037,2601.4,2601.3,0.38451]
[1729211613271,2.91698994,2601.5,2601.1,0.4044]
[1729211613467,2.50908994,2601.5,2601.4,0.3845]
[1729211615876,8.71688994,2601.6,2601.5,0.38449]
[1729211617989,5.50908994,2601.6,2601.5,0.38449]
[1729211619279,5.50908994,2601.6,2601.1,0.4044]
[1729211619485,3.3845,2601.4,2601.2,0.38453]
[1729211619687,0.38451,2601.3,2601.2,0.38453]
[1729211619883,0.41,2601.3,2601.2,0.38453]
[1729211622282,3.30359994,2601.3,2601.2,0.38453]
[1729211622489,2.91908994,2601.3,2601.2,0.38453]
[1729211622992,0.41,2601.3,2601.2,0.38453]
[1729211624687,2.91908994,2601.3,2601.2,0.38453]
[1729211625192,0.41,2601.3,2601.2,0.38453]
[1729211625894,5.71688994,2601.5,2601.4,0.3845]
[1729211626288,6.10137994,2601.5,2601.4,0.3845]
[1729211626595,13.0518,2601.5,2601.1,0.38454]
[1729211626895,3.0,2601.2,2601.1,0.38454]
[1729211627593,2.50704596,2601.4,2601.2,0.38453]
[1729211627797,2.50704596,2601.4,2601.3,0.38451]
[1729211628788,5.71484596,2601.5,2601.4,0.3845]
[1729211628992,3.2078,2601.5,2601.4,0.3845]
[1729211632810,2.50704596,2601.9,2601.4,13.80523]
[1729211633011,3.34644596,2602.0,2601.9,0.38443]
[1729211633205,0.8394,2602.0,2601.9,0.38443]
[1729211637506,0.8394,2602.0,2601.5,0.8198]
[1729211637710,3.0,2601.9,2601.5,0.8198]
[1729211638009,3.0,2601.7,2601.4,3.2078]
[1729211638207,3.0,2601.7,2601.6,0.38447]
[1729211638800,0.38445,2601.8,2601.6,0.38447]
[1729211640508,0.38446,2601.7,2601.5,0.80058]
[1729211640710,0.38445,2601.8,2601.6,0.38447]
[1729211640905,0.38445,2601.8,2601.5,0.4161]
[1729211641214,3.78774,2601.9,2601.7,0.38445]
[1729211641413,3.4033,2601.9,2601.7,0.38445]
[1729211641609,0.38444,2601.8,2601.7,0.38446]
[1729211642219,3.4033,2601.9,2601.7,0.38446]
[1729211642412,0.38444,2601.8,2601.7,0.38446]
[1729211642608,0.38444,2601.8,2601.5,0.4161]
[1729211642814,0.38447,2601.7,2601.5,0.80058]
[1729211643112,0.38451,2601.4,2601.3,0.38451]
[1729211643314,3.0,2601.5,2600.8,0.3914]
[1729211643611,3.0,2601.0,2600.5,4.093]
[1729211643913,0.4062,2600.9,2600.8,0.38459]
[1729211644305,0.79078,2600.9,2600.7,0.38459]
[1729211644500,3.614,2600.9,2600.8,0.38459]
[1729211645205,41.1977,2601.1,2600.5,1.35297]
[1729211645206,0.3977,2601.1,2601.0,0.38456]
[1729211645406,3.0,2601.4,2600.8,3.96146]
[1729211645407,0.4062,2601.4,2600.8,3.96146]
[1729211645606,0.4062,2601.4,2601.3,0.38451]
[1729211647513,6.13304596,2601.6,2601.5,0.38449]
[1729211647514,3.2078,2601.6,2601.5,0.38449]
[1729211649915,3.29109596,2601.8,2601.4,0.419]
[1729211650214,3.2078,2601.9,2601.6,3.0]
[1729211650415,2.50704596,2602.0,2601.9,0.38443]
[1729211650619,0.8053,2602.3,2601.6,3.96117]
[1729211651115,0.4003,2602.3,2602.2,0.38438]
[1729211651619,3.2078,2602.4,2602.3,0.38437]
[1729211651813,2.90734596,2602.7,2602.5,0.38434]
[1729211652012,2.90734596,2602.7,2602.3,0.38437]
[1729211652228,2.90734596,2602.7,2602.2,0.4088]
[1729211652229,0.4003,2602.7,2602.2,0.4088]
[1729211652617,2.90734596,2602.7,2602.2,0.4088]
[1729211652814,0.4003,2602.7,2602.6,0.38432]
[1729211653118,0.4003,2602.7,2602.5,0.38433]
[1729211653319,0.4003,2602.7,2602.6,0.38432]
[1729211655620,0.4003,2602.7,2602.1,3.2078]